[Event "Titled Tuesday Blitz November 2 2021"]
[White "Wagner, Dinara"]
[Black "Gritsenko, Nikolai"]
[WhiteFideId "24157570"]
[BlackFideId "14112493"]
[WhiteElo "2216"]
[BlackElo "2389"]
[Result "0-1"]
[Round "09"]
[TimeControl "180+1"]
[Date "2021.11.02"]
[WhiteClock "0:00:15"]
[BlackClock "0:00:17"]

1. d4 {[%clk 0:02:56]}  d5 {[%clk 0:02:58]} 2. c4 {[%clk 0:02:54]}  Nc6 {[%clk 0:02:57]} 3. Nf3 {[%clk 0:02:51]}  Bg4 {[%clk 0:02:57]} 4. cxd5 {[%clk 0:02:48]}  Bxf3 {[%clk 0:02:56]} 5. dxc6 {[%clk 0:02:28]}  Bxc6 {[%clk 0:02:56]} 6. Nc3 {[%clk 0:02:28]}  e6 {[%clk 0:02:55]} 7. Bf4 {[%clk 0:02:23]}  Bd6 {[%clk 0:02:50]} 8. Bxd6 {[%clk 0:02:20]}  Qxd6 {[%clk 0:02:49]} 9. e3 {[%clk 0:02:20]}  a6 {[%clk 0:02:27]} 10. Qg4 {[%clk 0:02:08]}  g6 {[%clk 0:02:13]} 11. Be2 {[%clk 0:02:06]}  h5 {[%clk 0:01:46]} 12. Qg5 {[%clk 0:01:58]}  h4 {[%clk 0:01:32]} 13. h3 {[%clk 0:01:48]}  Kf8 {[%clk 0:01:13]} 14. O-O {[%clk 0:01:46]}  Kg7 {[%clk 0:01:01]} 15. Rad1 {[%clk 0:01:39]}  Nf6 {[%clk 0:00:58]} 16. f4 {[%clk 0:01:14]}  Ne4 {[%clk 0:00:48]} 17. Nxe4 {[%clk 0:00:59]}  Bxe4 {[%clk 0:00:47]} 18. Bf3 {[%clk 0:01:00]}  Bxf3 {[%clk 0:00:44]} 19. Rxf3 {[%clk 0:00:59]}  Rh5 {[%clk 0:00:41]} 20. Qg4 {[%clk 0:00:45]}  f5 {[%clk 0:00:39]} 21. Qxh5 {[%clk 0:00:45]}  gxh5 {[%clk 0:00:39]} 22. Rf2 {[%clk 0:00:42]}  Kf6 {[%clk 0:00:38]} 23. Rc2 {[%clk 0:00:42]}  c6 {[%clk 0:00:38]} 24. Rdc1 {[%clk 0:00:42]}  Rg8 {[%clk 0:00:38]} 25. Kh2 {[%clk 0:00:41]}  Qd5 {[%clk 0:00:36]} 26. b3 {[%clk 0:00:36]}  Rg3 {[%clk 0:00:35]} 27. Re2 {[%clk 0:00:36]}  Qe4 {[%clk 0:00:35]} 28. Rc3 {[%clk 0:00:36]}  a5 {[%clk 0:00:32]} 29. a4 {[%clk 0:00:35]}  Kf7 {[%clk 0:00:30]} 30. Kg1 {[%clk 0:00:34]}  Ke7 {[%clk 0:00:28]} 31. Kh2 {[%clk 0:00:34]}  Kd6 {[%clk 0:00:28]} 32. Kg1 {[%clk 0:00:35]}  Kc7 {[%clk 0:00:28]} 33. Kh2 {[%clk 0:00:35]}  Kb6 {[%clk 0:00:28]} 34. Kg1 {[%clk 0:00:35]}  Qd5 {[%clk 0:00:25]} 35. Kh2 {[%clk 0:00:34]}  Qd6 {[%clk 0:00:25]} 36. Rec2 {[%clk 0:00:32]}  Qa3 {[%clk 0:00:23]} 37. Kg1 {[%clk 0:00:31]}  Qb4 {[%clk 0:00:22]} 38. Kh2 {[%clk 0:00:31]}  Qa3 {[%clk 0:00:22]} 39. Kg1 {[%clk 0:00:31]}  Qd6 {[%clk 0:00:21]} 40. Kh2 {[%clk 0:00:31]}  Qd5 {[%clk 0:00:21]} 41. Kg1 {[%clk 0:00:30]}  Qe4 {[%clk 0:00:21]} 42. Re2 {[%clk 0:00:28]}  Kc7 {[%clk 0:00:21]} 43. Kh2 {[%clk 0:00:27]}  Kd6 {[%clk 0:00:21]} 44. Kg1 {[%clk 0:00:28]}  b5 {[%clk 0:00:21]} 45. axb5 {[%clk 0:00:26]}  cxb5 {[%clk 0:00:21]} 46. Kh2 {[%clk 0:00:26]}  b4 {[%clk 0:00:21]} 47. Rc5 {[%clk 0:00:14]}  Rxe3 {[%clk 0:00:20]} 48. Rf2 {[%clk 0:00:15]}  Re2 {[%clk 0:00:19]} 49. Rxe2 {[%clk 0:00:14]}  Qxe2 {[%clk 0:00:19]} 50. Rxa5 {[%clk 0:00:15]}  Qf2 {[%clk 0:00:19]} 51. Ra6+ {[%clk 0:00:14]}  Kd5 {[%clk 0:00:19]} 52. Rb6 {[%clk 0:00:14]}  Qxf4+ {[%clk 0:00:18]} 53. Kg1 {[%clk 0:00:15]}  Qxd4+ {[%clk 0:00:18]} 54. Kf1 {[%clk 0:00:15]}  Qxb6 {[%clk 0:00:17]} 55. Ke2 {[%clk 0:00:15]}  Ke4 {[%clk 0:00:17]} 0-1


[Site "https://www.chess.com"]

[Event "Titled Tuesday Blitz November 2 2021"]
[White "Gaehwiler, Gabriel"]
[Black "Cunjalo, Faris"]
[WhiteFideId "1314530"]
[BlackFideId "14410710"]
[WhiteElo "2320"]
[BlackElo "2234"]
[Result "0-1"]
[Round "09"]
[TimeControl "180+1"]
[Date "2021.11.02"]
[WhiteClock "0:00:05"]
[BlackClock "0:00:06"]

1. d4 {[%clk 0:03:00]}  g6 {[%clk 0:03:00]} 2. g3 {[%clk 0:03:00]}  Bg7 {[%clk 0:03:01]} 3. Bg2 {[%clk 0:03:00]}  f5 {[%clk 0:03:01]} 4. c4 {[%clk 0:02:59]}  Nf6 {[%clk 0:03:01]} 5. Nf3 {[%clk 0:02:59]}  O-O {[%clk 0:03:02]} 6. O-O {[%clk 0:03:00]}  d6 {[%clk 0:03:02]} 7. Nc3 {[%clk 0:03:00]}  Qe8 {[%clk 0:03:03]} 8. Re1 {[%clk 0:02:58]}  e5 {[%clk 0:03:02]} 9. e4 {[%clk 0:02:54]}  f4 {[%clk 0:02:53]} 10. gxf4 {[%clk 0:02:43]}  Bg4 {[%clk 0:02:46]} 11. dxe5 {[%clk 0:02:36]}  dxe5 {[%clk 0:02:44]} 12. h3 {[%clk 0:02:29]}  Bxf3 {[%clk 0:02:42]} 13. Bxf3 {[%clk 0:02:29]}  Nc6 {[%clk 0:02:33]} 14. Nd5 {[%clk 0:02:25]}  Rd8 {[%clk 0:02:11]} 15. Be3 {[%clk 0:02:12]}  exf4 {[%clk 0:02:00]} 16. Bxf4 {[%clk 0:01:52]}  Ne5 {[%clk 0:02:00]} 17. Bxe5 {[%clk 0:01:11]}  Qxe5 {[%clk 0:02:01]} 18. Qe2 {[%clk 0:01:03]}  Nd7 {[%clk 0:01:43]} 19. Bg2 {[%clk 0:01:00]}  c6 {[%clk 0:01:41]} 20. Ne3 {[%clk 0:00:57]}  Nc5 {[%clk 0:01:37]} 21. Ng4 {[%clk 0:00:53]}  Qxb2 {[%clk 0:01:33]} 22. Qxb2 {[%clk 0:00:49]}  Bxb2 {[%clk 0:01:34]} 23. Rab1 {[%clk 0:00:49]}  Bc3 {[%clk 0:01:29]} 24. Rec1 {[%clk 0:00:47]}  Bd4 {[%clk 0:01:29]} 25. Rc2 {[%clk 0:00:43]}  h5 {[%clk 0:01:28]} 26. Nh2 {[%clk 0:00:43]}  Rf4 {[%clk 0:01:15]} 27. Re2 {[%clk 0:00:35]}  Rdf8 {[%clk 0:01:06]} 28. Rf1 {[%clk 0:00:31]}  Nd3 {[%clk 0:00:52]} 29. Rd2 {[%clk 0:00:27]}  Bxf2+ {[%clk 0:00:50]} 30. Kh1 {[%clk 0:00:12]}  Ne5 {[%clk 0:00:50]} 31. Nf3 {[%clk 0:00:11]}  Nxf3 {[%clk 0:00:50]} 32. Rdxf2 {[%clk 0:00:10]}  Rxe4 {[%clk 0:00:40]} 33. Rxf3 {[%clk 0:00:10]}  Rxf3 {[%clk 0:00:40]} 34. Rxf3 {[%clk 0:00:11]}  Rxc4 {[%clk 0:00:41]} 35. Rb3 {[%clk 0:00:11]}  b6 {[%clk 0:00:35]} 36. Bf1 {[%clk 0:00:10]}  Rc1 {[%clk 0:00:34]} 37. Kg1 {[%clk 0:00:10]}  Kf7 {[%clk 0:00:30]} 38. Re3 {[%clk 0:00:10]}  a5 {[%clk 0:00:23]} 39. a3 {[%clk 0:00:10]}  b5 {[%clk 0:00:24]} 40. Kf2 {[%clk 0:00:10]}  Kf6 {[%clk 0:00:21]} 41. Bd3 {[%clk 0:00:10]}  Rc3 {[%clk 0:00:17]} 42. Be4 {[%clk 0:00:10]}  Rc4 {[%clk 0:00:15]} 43. Bd3 {[%clk 0:00:10]}  Rc3 {[%clk 0:00:15]} 44. Be4 {[%clk 0:00:10]}  Rc5 {[%clk 0:00:16]} 45. Kf3 {[%clk 0:00:09]}  g5 {[%clk 0:00:13]} 46. Bd3 {[%clk 0:00:10]}  Rc3 {[%clk 0:00:12]} 47. Be4 {[%clk 0:00:10]}  Rc4 {[%clk 0:00:09]} 48. Bd3 {[%clk 0:00:09]}  Ra4 {[%clk 0:00:08]} 49. Be4 {[%clk 0:00:09]}  Rc4 {[%clk 0:00:08]} 50. Bd3 {[%clk 0:00:09]}  Rf4+ {[%clk 0:00:08]} 51. Ke2 {[%clk 0:00:09]}  g4 {[%clk 0:00:08]} 52. hxg4 {[%clk 0:00:09]}  hxg4 {[%clk 0:00:09]} 53. Re4 {[%clk 0:00:09]}  Rxe4+ {[%clk 0:00:05]} 54. Bxe4 {[%clk 0:00:10]}  c5 {[%clk 0:00:06]} 55. Bd3 {[%clk 0:00:10]}  c4 {[%clk 0:00:03]} 56. Be4 {[%clk 0:00:10]}  Ke5 {[%clk 0:00:04]} 57. Bc6 {[%clk 0:00:10]}  b4 {[%clk 0:00:04]} 58. axb4 {[%clk 0:00:08]}  axb4 {[%clk 0:00:05]} 59. Bd7 {[%clk 0:00:08]}  g3 {[%clk 0:00:05]} 60. Bc6 {[%clk 0:00:07]}  Kd4 {[%clk 0:00:04]} 61. Kd2 {[%clk 0:00:05]}  b3 {[%clk 0:00:05]} 62. Bg2 {[%clk 0:00:04]}  c3+ {[%clk 0:00:05]} 63. Kc1 {[%clk 0:00:05]}  Ke3 {[%clk 0:00:06]} 0-1


[Site "https://www.chess.com"]

[Event "Titled Tuesday Blitz November 2 2021"]
[White "Golubev, Mikhail"]
[Black "Lovkov, Roman"]
[WhiteFideId "14100983"]
[BlackFideId "4157389"]
[WhiteElo "2374"]
[BlackElo "2371"]
[Result "0-1"]
[Round "09"]
[TimeControl "180+1"]
[Date "2021.11.02"]
[WhiteClock "0:00:02"]
[BlackClock "0:00:44"]

1. e4 {[%clk 0:03:00]}  c5 {[%clk 0:02:58]} 2. Nf3 {[%clk 0:02:58]}  d6 {[%clk 0:02:51]} 3. d4 {[%clk 0:02:58]}  cxd4 {[%clk 0:02:52]} 4. Nxd4 {[%clk 0:02:58]}  Nf6 {[%clk 0:02:52]} 5. Nc3 {[%clk 0:02:58]}  g6 {[%clk 0:02:53]} 6. Be3 {[%clk 0:02:58]}  Bg7 {[%clk 0:02:53]} 7. f3 {[%clk 0:02:58]}  O-O {[%clk 0:02:54]} 8. Qd2 {[%clk 0:02:59]}  Nc6 {[%clk 0:02:54]} 9. O-O-O {[%clk 0:02:59]}  d5 {[%clk 0:02:52]} 10. Nxc6 {[%clk 0:02:58]}  bxc6 {[%clk 0:02:52]} 11. Bh6 {[%clk 0:02:58]}  Bxh6 {[%clk 0:02:49]} 12. Qxh6 {[%clk 0:02:56]}  Rb8 {[%clk 0:02:50]} 13. e5 {[%clk 0:02:52]}  Nd7 {[%clk 0:02:37]} 14. Rd4 {[%clk 0:02:52]}  Re8 {[%clk 0:02:18]} 15. e6 {[%clk 0:02:52]}  Nf8 {[%clk 0:02:07]} 16. exf7+ {[%clk 0:01:51]}  Kxf7 {[%clk 0:02:08]} 17. h4 {[%clk 0:01:51]}  e5 {[%clk 0:02:06]} 18. Ra4 {[%clk 0:01:40]}  Qb6 {[%clk 0:02:03]} 19. b3 {[%clk 0:01:33]}  Qc5 {[%clk 0:01:47]} 20. Kb2 {[%clk 0:01:23]}  Rb4 {[%clk 0:01:42]} 21. h5 {[%clk 0:01:15]}  Rxa4 {[%clk 0:01:40]} 22. Nxa4 {[%clk 0:01:13]}  Qd4+ {[%clk 0:01:40]} 23. c3 {[%clk 0:01:07]}  Qf4 {[%clk 0:01:40]} 24. hxg6+ {[%clk 0:01:02]}  hxg6 {[%clk 0:01:41]} 25. Qxf4+ {[%clk 0:00:33]}  exf4 {[%clk 0:01:42]} 26. Bd3 {[%clk 0:00:33]}  Kg7 {[%clk 0:01:24]} 27. Nc5 {[%clk 0:00:26]}  Nd7 {[%clk 0:01:20]} 28. Nxd7 {[%clk 0:00:24]}  Bxd7 {[%clk 0:01:21]} 29. Kc2 {[%clk 0:00:24]}  Re5 {[%clk 0:01:19]} 30. Rd1 {[%clk 0:00:19]}  Kf6 {[%clk 0:01:16]} 31. Rd2 {[%clk 0:00:15]}  Re1 {[%clk 0:01:15]} 32. Re2 {[%clk 0:00:14]}  Rg1 {[%clk 0:01:15]} 33. b4 {[%clk 0:00:13]}  g5 {[%clk 0:01:09]} 34. Rf2 {[%clk 0:00:13]}  g4 {[%clk 0:01:06]} 35. fxg4 {[%clk 0:00:13]}  Kg5 {[%clk 0:01:07]} 36. Bf1 {[%clk 0:00:10]}  Bxg4 {[%clk 0:01:05]} 37. Kd3 {[%clk 0:00:10]}  Bf5+ {[%clk 0:00:46]} 38. Kd4 {[%clk 0:00:10]}  Be4 {[%clk 0:00:46]} 39. Kc5 {[%clk 0:00:08]}  Kg4 {[%clk 0:00:47]} 40. Ba6 {[%clk 0:00:02]}  Kg3 {[%clk 0:00:43]} 41. Rd2 {[%clk 0:00:02]}  Rc1 {[%clk 0:00:44]} 0-1


[Site "https://www.chess.com"]

[Event "Titled Tuesday Blitz November 2 2021"]
[White "Gubajdullin, Alexei"]
[Black "Matinian, Nikita"]
[WhiteFideId "4141202"]
[BlackFideId "24129100"]
[WhiteElo "2268"]
[BlackElo "2464"]
[Result "1-0"]
[Round "09"]
[TimeControl "180+1"]
[Date "2021.11.02"]
[WhiteClock "0:00:55"]
[BlackClock "0:00:04"]

1. d4 {[%clk 0:03:00]}  Nf6 {[%clk 0:02:57]} 2. Nf3 {[%clk 0:03:00]}  g6 {[%clk 0:02:56]} 3. Bf4 {[%clk 0:03:00]}  Bg7 {[%clk 0:02:57]} 4. e3 {[%clk 0:03:00]}  O-O {[%clk 0:02:57]} 5. Be2 {[%clk 0:03:00]}  d6 {[%clk 0:02:56]} 6. O-O {[%clk 0:03:00]}  Nbd7 {[%clk 0:02:56]} 7. h3 {[%clk 0:03:00]}  b6 {[%clk 0:02:52]} 8. a4 {[%clk 0:02:59]}  a6 {[%clk 0:02:52]} 9. a5 {[%clk 0:02:57]}  b5 {[%clk 0:02:52]} 10. c4 {[%clk 0:02:58]}  bxc4 {[%clk 0:02:52]} 11. Bxc4 {[%clk 0:02:56]}  Bb7 {[%clk 0:02:50]} 12. Nc3 {[%clk 0:02:51]}  c5 {[%clk 0:02:42]} 13. d5 {[%clk 0:02:40]}  Rc8 {[%clk 0:02:42]} 14. Qd3 {[%clk 0:02:38]}  Nb8 {[%clk 0:02:31]} 15. e4 {[%clk 0:02:36]}  Nfd7 {[%clk 0:02:31]} 16. Rfe1 {[%clk 0:02:32]}  Rc7 {[%clk 0:02:29]} 17. Ra4 {[%clk 0:02:25]}  f6 {[%clk 0:02:14]} 18. Qe3 {[%clk 0:02:19]}  Ne5 {[%clk 0:02:13]} 19. Bxe5 {[%clk 0:02:15]}  fxe5 {[%clk 0:02:11]} 20. Ng5 {[%clk 0:02:10]}  Bh6 {[%clk 0:02:11]} 21. h4 {[%clk 0:02:10]}  Nd7 {[%clk 0:02:08]} 22. Qe2 {[%clk 0:02:07]}  Bxg5 {[%clk 0:02:08]} 23. hxg5 {[%clk 0:02:06]}  Kg7 {[%clk 0:01:55]} 24. Bxa6 {[%clk 0:02:03]}  Bxa6 {[%clk 0:01:48]} 25. Qxa6 {[%clk 0:02:02]}  c4 {[%clk 0:01:47]} 26. Rxc4 {[%clk 0:01:55]}  Nc5 {[%clk 0:01:47]} 27. Qb6 {[%clk 0:01:52]}  Qc8 {[%clk 0:00:51]} 28. Nb5 {[%clk 0:01:52]}  Rb7 {[%clk 0:00:49]} 29. Nxd6 {[%clk 0:01:52]}  exd6 {[%clk 0:00:45]} 30. Qxd6 {[%clk 0:01:52]}  Rc7 {[%clk 0:00:13]} 31. Qxe5+ {[%clk 0:01:51]}  Kg8 {[%clk 0:00:13]} 32. d6 {[%clk 0:01:43]}  Rcf7 {[%clk 0:00:06]} 33. Qxc5 {[%clk 0:01:36]}  Qg4 {[%clk 0:00:05]} 34. e5 {[%clk 0:01:28]}  Qh5 {[%clk 0:00:03]} 35. e6 {[%clk 0:01:26]}  Rxf2 {[%clk 0:00:03]} 36. e7 {[%clk 0:01:11]}  Rxg2+ {[%clk 0:00:03]} 37. Kxg2 {[%clk 0:01:08]}  Qf3+ {[%clk 0:00:04]} 38. Kh2 {[%clk 0:01:04]}  Qh5+ {[%clk 0:00:04]} 39. Kg1 {[%clk 0:00:55]} 1-0


[Site "https://www.chess.com"]

[Event "Titled Tuesday Blitz November 2 2021"]
[White "Kalashian, David"]
[Black "Tikhonov, Viacheslav"]
[WhiteFideId "13302418"]
[BlackFideId "44196407"]
[WhiteElo "2490"]
[BlackElo "1773"]
[Result "0-1"]
[Round "09"]
[TimeControl "180+1"]
[Date "2021.11.02"]
[WhiteClock "0:00:06"]
[BlackClock "0:00:20"]

1. d3 {[%clk 0:03:00]}  e5 {[%clk 0:02:56]} 2. g3 {[%clk 0:02:59]}  d5 {[%clk 0:02:55]} 3. Bg2 {[%clk 0:02:59]}  Nf6 {[%clk 0:02:53]} 4. Nf3 {[%clk 0:02:59]}  Nbd7 {[%clk 0:02:51]} 5. O-O {[%clk 0:03:00]}  Bd6 {[%clk 0:02:50]} 6. e4 {[%clk 0:02:59]}  c6 {[%clk 0:02:49]} 7. Re1 {[%clk 0:02:56]}  O-O {[%clk 0:02:48]} 8. Nbd2 {[%clk 0:02:57]}  Re8 {[%clk 0:02:46]} 9. c3 {[%clk 0:02:54]}  Qc7 {[%clk 0:02:44]} 10. Qc2 {[%clk 0:02:51]}  a5 {[%clk 0:02:44]} 11. Nf1 {[%clk 0:02:50]}  dxe4 {[%clk 0:02:35]} 12. dxe4 {[%clk 0:02:50]}  Nc5 {[%clk 0:02:35]} 13. Nh4 {[%clk 0:02:47]}  b6 {[%clk 0:02:31]} 14. Rd1 {[%clk 0:02:46]}  Bf8 {[%clk 0:02:27]} 15. Bg5 {[%clk 0:02:45]}  Nfd7 {[%clk 0:02:24]} 16. Be3 {[%clk 0:02:28]}  g6 {[%clk 0:02:22]} 17. Rd2 {[%clk 0:02:27]}  Be7 {[%clk 0:02:22]} 18. Rad1 {[%clk 0:02:24]}  Ne6 {[%clk 0:02:16]} 19. Bh3 {[%clk 0:02:15]}  Nf6 {[%clk 0:02:13]} 20. Bh6 {[%clk 0:02:15]}  Bb7 {[%clk 0:02:05]} 21. Bxe6 {[%clk 0:02:12]}  fxe6 {[%clk 0:02:05]} 22. Ne3 {[%clk 0:02:09]}  c5 {[%clk 0:01:57]} 23. f3 {[%clk 0:02:05]}  Rad8 {[%clk 0:01:54]} 24. Kg2 {[%clk 0:01:50]}  Kf7 {[%clk 0:01:54]} 25. h3 {[%clk 0:01:35]}  Ng8 {[%clk 0:01:53]} 26. Ng4 {[%clk 0:01:36]}  g5 {[%clk 0:01:31]} 27. Rd7 {[%clk 0:01:19]}  Qb8 {[%clk 0:01:14]} 28. Bxg5 {[%clk 0:01:15]}  Rxd7 {[%clk 0:01:07]} 29. Rxd7 {[%clk 0:01:16]}  Bc6 {[%clk 0:01:06]} 30. Rxe7+ {[%clk 0:01:01]}  Nxe7 {[%clk 0:01:06]} 31. Qc1 {[%clk 0:00:58]}  Ng8 {[%clk 0:01:02]} 32. Bh6 {[%clk 0:00:39]}  Ke7 {[%clk 0:00:46]} 33. Bg7 {[%clk 0:00:34]}  Kd7 {[%clk 0:00:34]} 34. Bxe5 {[%clk 0:00:30]}  Qd8 {[%clk 0:00:31]} 35. Kh2 {[%clk 0:00:20]}  Kc8 {[%clk 0:00:31]} 36. Ng2 {[%clk 0:00:20]}  Ne7 {[%clk 0:00:29]} 37. Nf4 {[%clk 0:00:19]}  Ng6 {[%clk 0:00:28]} 38. Nxg6 {[%clk 0:00:19]}  hxg6 {[%clk 0:00:29]} 39. h4 {[%clk 0:00:20]}  Qd3 {[%clk 0:00:29]} 40. Qf4 {[%clk 0:00:18]}  Qe2+ {[%clk 0:00:27]} 41. Kh3 {[%clk 0:00:17]}  Qf1+ {[%clk 0:00:27]} 42. Kh2 {[%clk 0:00:18]}  Rd8 {[%clk 0:00:27]} 43. Bb8 {[%clk 0:00:11]}  Qe2+ {[%clk 0:00:24]} 44. Kh3 {[%clk 0:00:11]}  Qf1+ {[%clk 0:00:24]} 45. Kh2 {[%clk 0:00:12]}  e5 {[%clk 0:00:22]} 46. Bxe5 {[%clk 0:00:07]}  Rd1 {[%clk 0:00:21]} 47. Nf2 {[%clk 0:00:03]}  Qxf2+ {[%clk 0:00:21]} 48. Kh3 {[%clk 0:00:04]}  Bd7+ {[%clk 0:00:19]} 49. g4 {[%clk 0:00:04]}  Rh1+ {[%clk 0:00:19]} 50. Qh2 {[%clk 0:00:05]}  Rxh2+ {[%clk 0:00:19]} 51. Bxh2 {[%clk 0:00:06]}  Qxf3+ {[%clk 0:00:20]} 0-1


[Site "https://www.chess.com"]

[Event "Titled Tuesday Blitz November 2 2021"]
[White "Khoroshev, Nikita"]
[Black "Nguyen Hong Nhung"]
[WhiteFideId "14200287"]
[BlackFideId "12412201"]
[WhiteElo "2376"]
[BlackElo "1661"]
[Result "1-0"]
[Round "09"]
[TimeControl "180+1"]
[Date "2021.11.02"]
[WhiteClock "0:00:16"]
[BlackClock "0:00:33"]

1. e4 {[%clk 0:03:00]}  c5 {[%clk 0:03:00]} 2. Nf3 {[%clk 0:03:00]}  e6 {[%clk 0:03:00]} 3. Nc3 {[%clk 0:03:00]}  Nc6 {[%clk 0:03:00]} 4. d4 {[%clk 0:03:00]}  cxd4 {[%clk 0:03:01]} 5. Nxd4 {[%clk 0:03:01]}  Qc7 {[%clk 0:03:02]} 6. Ndb5 {[%clk 0:02:58]}  Qb8 {[%clk 0:03:02]} 7. g3 {[%clk 0:02:54]}  a6 {[%clk 0:02:59]} 8. Nd4 {[%clk 0:02:53]}  Nf6 {[%clk 0:02:58]} 9. Nxc6 {[%clk 0:02:52]}  bxc6 {[%clk 0:02:57]} 10. Bg2 {[%clk 0:02:52]}  d5 {[%clk 0:02:47]} 11. O-O {[%clk 0:02:52]}  Be7 {[%clk 0:02:45]} 12. Re1 {[%clk 0:02:47]}  O-O {[%clk 0:02:37]} 13. exd5 {[%clk 0:02:47]}  cxd5 {[%clk 0:02:36]} 14. Bf4 {[%clk 0:02:43]}  Qxb2 {[%clk 0:02:31]} 15. Be5 {[%clk 0:02:37]}  Qa3 {[%clk 0:02:20]} 16. Rb1 {[%clk 0:02:31]}  Rd8 {[%clk 0:02:13]} 17. Rb3 {[%clk 0:02:14]}  Qa5 {[%clk 0:02:13]} 18. g4 {[%clk 0:01:49]}  Ra7 {[%clk 0:02:06]} 19. g5 {[%clk 0:01:45]}  Nd7 {[%clk 0:02:04]} 20. Bd4 {[%clk 0:01:33]}  Bc5 {[%clk 0:02:03]} 21. Re3 {[%clk 0:01:12]}  Bxd4 {[%clk 0:01:37]} 22. Qxd4 {[%clk 0:01:12]}  Qc5 {[%clk 0:01:37]} 23. Qh4 {[%clk 0:01:07]}  g6 {[%clk 0:01:23]} 24. Rh3 {[%clk 0:00:47]}  Nf8 {[%clk 0:01:23]} 25. Ne2 {[%clk 0:00:46]}  Qc4 {[%clk 0:01:08]} 26. Qxc4 {[%clk 0:00:26]}  dxc4 {[%clk 0:01:08]} 27. Rb8 {[%clk 0:00:26]}  Rd1+ {[%clk 0:00:58]} 28. Bf1 {[%clk 0:00:27]}  Bd7 {[%clk 0:00:53]} 29. Nc3 {[%clk 0:00:27]}  Rd4 {[%clk 0:00:51]} 30. f3 {[%clk 0:00:22]}  e5 {[%clk 0:00:49]} 31. Rh6 {[%clk 0:00:20]}  Kg7 {[%clk 0:00:48]} 32. Ne4 {[%clk 0:00:19]}  Ne6 {[%clk 0:00:36]} 33. Rxh7+ {[%clk 0:00:15]}  Kxh7 {[%clk 0:00:32]} 34. Nf6+ {[%clk 0:00:15]}  Kg7 {[%clk 0:00:33]} 35. Rg8# {[%clk 0:00:16]} 1-0


[Site "https://www.chess.com"]

[Event "Titled Tuesday Blitz November 2 2021"]
[White "Martinez Alcantara, Jose Eduardo"]
[Black "Rasulov, Vugar"]
[WhiteFideId "3805662"]
[BlackFideId "13402390"]
[WhiteElo "2690"]
[BlackElo "2560"]
[Result "0-1"]
[Round "09"]
[TimeControl "180+1"]
[Date "2021.11.02"]
[WhiteClock "0:00:02"]
[BlackClock "0:00:48"]

1. e4 {[%clk 0:03:00]}  c5 {[%clk 0:02:59]} 2. Nf3 {[%clk 0:03:00]}  d6 {[%clk 0:02:59]} 3. d4 {[%clk 0:03:00]}  cxd4 {[%clk 0:03:00]} 4. Nxd4 {[%clk 0:03:01]}  Nf6 {[%clk 0:03:01]} 5. Nc3 {[%clk 0:03:01]}  a6 {[%clk 0:03:01]} 6. h3 {[%clk 0:03:02]}  g6 {[%clk 0:02:59]} 7. Be3 {[%clk 0:02:55]}  Bg7 {[%clk 0:02:59]} 8. Qd2 {[%clk 0:02:55]}  O-O {[%clk 0:03:00]} 9. Bh6 {[%clk 0:02:28]}  Nc6 {[%clk 0:02:52]} 10. Bxg7 {[%clk 0:02:27]}  Kxg7 {[%clk 0:02:53]} 11. O-O-O {[%clk 0:02:26]}  Be6 {[%clk 0:02:50]} 12. Nxe6+ {[%clk 0:02:18]}  fxe6 {[%clk 0:02:51]} 13. Bc4 {[%clk 0:02:18]}  e5 {[%clk 0:02:46]} 14. Kb1 {[%clk 0:02:11]}  Nd4 {[%clk 0:02:42]} 15. f4 {[%clk 0:01:59]}  Rc8 {[%clk 0:02:41]} 16. fxe5 {[%clk 0:01:36]}  dxe5 {[%clk 0:02:42]} 17. Bb3 {[%clk 0:01:36]}  Qa5 {[%clk 0:02:29]} 18. Qg5 {[%clk 0:01:27]}  h6 {[%clk 0:02:23]} 19. Qe3 {[%clk 0:01:24]}  Qc5 {[%clk 0:02:13]} 20. Rd3 {[%clk 0:01:13]}  b5 {[%clk 0:02:09]} 21. Rc1 {[%clk 0:01:05]}  a5 {[%clk 0:02:04]} 22. Ne2 {[%clk 0:00:55]}  Rfd8 {[%clk 0:01:49]} 23. Nxd4 {[%clk 0:00:52]}  Rxd4 {[%clk 0:01:49]} 24. Rxd4 {[%clk 0:00:47]}  exd4 {[%clk 0:01:48]} 25. Qd3 {[%clk 0:00:28]}  a4 {[%clk 0:01:40]} 26. Be6 {[%clk 0:00:28]}  Rc6 {[%clk 0:01:41]} 27. Bg4 {[%clk 0:00:29]}  b4 {[%clk 0:01:35]} 28. Rd1 {[%clk 0:00:20]}  e5 {[%clk 0:01:32]} 29. Rf1 {[%clk 0:00:16]}  a3 {[%clk 0:01:27]} 30. b3 {[%clk 0:00:15]}  Qc3 {[%clk 0:01:23]} 31. Qxc3 {[%clk 0:00:15]}  Rxc3 {[%clk 0:01:23]} 32. Bf3 {[%clk 0:00:15]}  g5 {[%clk 0:01:20]} 33. Re1 {[%clk 0:00:10]}  Kg6 {[%clk 0:01:20]} 34. Kc1 {[%clk 0:00:09]}  d3 {[%clk 0:01:19]} 35. Bd1 {[%clk 0:00:10]}  Nh5 {[%clk 0:01:12]} 36. Kd2 {[%clk 0:00:05]}  dxc2 {[%clk 0:01:13]} 37. Bxc2 {[%clk 0:00:04]}  Nf4 {[%clk 0:01:13]} 38. Bd1 {[%clk 0:00:02]}  Nxg2 {[%clk 0:01:07]} 39. Rh1 {[%clk 0:00:02]}  h5 {[%clk 0:01:04]} 40. Be2 {[%clk 0:00:02]}  Nf4 {[%clk 0:01:03]} 41. Bb5 {[%clk 0:00:03]}  Rxh3 {[%clk 0:01:02]} 42. Rc1 {[%clk 0:00:04]}  Rh2+ {[%clk 0:01:00]} 43. Ke3 {[%clk 0:00:04]}  Rxa2 {[%clk 0:00:59]} 44. Rc6+ {[%clk 0:00:03]}  Kg7 {[%clk 0:01:00]} 45. Rc7+ {[%clk 0:00:04]}  Kf6 {[%clk 0:01:00]} 46. Rc6+ {[%clk 0:00:03]}  Ke7 {[%clk 0:01:01]} 47. Rc7+ {[%clk 0:00:03]}  Kd8 {[%clk 0:00:59]} 48. Rg7 {[%clk 0:00:01]}  Rg2 {[%clk 0:00:54]} 49. Ra7 {[%clk 0:00:01]}  h4 {[%clk 0:00:53]} 50. Bf1 {[%clk 0:00:01]}  Rg3+ {[%clk 0:00:50]} 51. Kf2 {[%clk 0:00:02]}  Rxb3 {[%clk 0:00:49]} 52. Bb5 {[%clk 0:00:02]}  h3 {[%clk 0:00:49]} 53. Rh7 {[%clk 0:00:02]}  a2 {[%clk 0:00:48]} 0-1


[Site "https://www.chess.com"]